[Event "Titled Tuesday Blitz March 29 Early 2022"]
[White "Perez Gormaz, Matias"]
[Black "Mikhnenko, Alexander"]
[WhiteFideId "3406342"]
[BlackFideId "34143014"]
[WhiteElo "2327"]
[BlackElo "2184"]
[Result "1-0"]
[Round "03"]
[TimeControl "180+1"]
[Date "2022.03.30"]
[WhiteClock "0:00:06"]
[BlackClock "0:00:03"]

1. e4 {[%clk 0:03:00]}  c5 {[%clk 0:03:00]} 2. Nf3 {[%clk 0:03:00]}  e6 {[%clk 0:03:00]} 3. g3 {[%clk 0:03:00]}  d5 {[%clk 0:02:59]} 4. exd5 {[%clk 0:03:00]}  exd5 {[%clk 0:03:00]} 5. d4 {[%clk 0:03:01]}  Nc6 {[%clk 0:03:01]} 6. Bg2 {[%clk 0:03:01]}  Nf6 {[%clk 0:03:01]} 7. O-O {[%clk 0:03:01]}  Be7 {[%clk 0:03:01]} 8. Nc3 {[%clk 0:03:01]}  Be6 {[%clk 0:03:00]} 9. dxc5 {[%clk 0:02:56]}  Bxc5 {[%clk 0:03:01]} 10. a3 {[%clk 0:02:57]}  O-O {[%clk 0:03:00]} 11. b4 {[%clk 0:02:57]}  Bb6 {[%clk 0:02:59]} 12. Bb2 {[%clk 0:02:57]}  Bg4 {[%clk 0:02:55]} 13. h3 {[%clk 0:02:56]}  Bh5 {[%clk 0:02:55]} 14. g4 {[%clk 0:02:55]}  Bg6 {[%clk 0:02:56]} 15. Na4 {[%clk 0:02:56]}  Bc7 {[%clk 0:02:53]} 16. Nd4 {[%clk 0:02:44]}  Qd6 {[%clk 0:02:42]} 17. f4 {[%clk 0:02:40]}  Nxd4 {[%clk 0:02:37]} 18. Bxd4 {[%clk 0:02:35]}  Be4 {[%clk 0:02:27]} 19. Nc5 {[%clk 0:02:04]}  b6 {[%clk 0:02:11]} 20. Nxe4 {[%clk 0:01:48]}  Nxe4 {[%clk 0:02:08]} 21. c4 {[%clk 0:01:39]}  Rfe8 {[%clk 0:02:00]} 22. Re1 {[%clk 0:01:22]}  Rad8 {[%clk 0:01:57]} 23. Rc1 {[%clk 0:01:12]}  Qxf4 {[%clk 0:01:54]} 24. cxd5 {[%clk 0:00:50]}  Qh2+ {[%clk 0:01:48]} 25. Kf1 {[%clk 0:00:49]}  Ng5 {[%clk 0:00:51]} 26. Qd3 {[%clk 0:00:31]}  Qf4+ {[%clk 0:00:34]} 27. Bf2 {[%clk 0:00:21]}  Be5 {[%clk 0:00:21]} 28. Qf5 {[%clk 0:00:16]}  Qxf5 {[%clk 0:00:15]} 29. gxf5 {[%clk 0:00:17]}  Bf4 {[%clk 0:00:15]} 30. Rcd1 {[%clk 0:00:10]}  f6 {[%clk 0:00:13]} 31. h4 {[%clk 0:00:08]}  Nf7 {[%clk 0:00:13]} 32. Re6 {[%clk 0:00:08]}  Be5 {[%clk 0:00:09]} 33. Rc1 {[%clk 0:00:08]}  Nd6 {[%clk 0:00:08]} 34. Bh3 {[%clk 0:00:06]}  Rd7 {[%clk 0:00:06]} 35. Be1 {[%clk 0:00:06]}  Kf7 {[%clk 0:00:05]} 36. Rc6 {[%clk 0:00:06]}  Red8 {[%clk 0:00:05]} 37. a4 {[%clk 0:00:05]}  Ne8 {[%clk 0:00:05]} 38. Bg2 {[%clk 0:00:04]}  g6 {[%clk 0:00:04]} 39. fxg6+ {[%clk 0:00:03]}  hxg6 {[%clk 0:00:05]} 40. a5 {[%clk 0:00:04]}  Ng7 {[%clk 0:00:05]} 41. axb6 {[%clk 0:00:04]}  axb6 {[%clk 0:00:05]} 42. Rxb6 {[%clk 0:00:04]}  Rc7 {[%clk 0:00:03]} 43. Rec6 {[%clk 0:00:04]}  Rxc6 {[%clk 0:00:04]} 44. dxc6 {[%clk 0:00:05]}  Nf5 {[%clk 0:00:04]} 45. Rb7+ {[%clk 0:00:05]}  Ke6 {[%clk 0:00:04]} 46. Bf2 {[%clk 0:00:06]}  Nd6 {[%clk 0:00:04]} 47. b5 {[%clk 0:00:05]}  Rc8 {[%clk 0:00:05]} 48. Ra7 {[%clk 0:00:05]}  Nxb5 {[%clk 0:00:03]} 49. Ra6 {[%clk 0:00:05]}  Nd4 {[%clk 0:00:03]} 50. c7+ {[%clk 0:00:05]}  Kd7 {[%clk 0:00:03]} 51. Ra7 {[%clk 0:00:04]}  Rxc7 {[%clk 0:00:03]} 52. Bh3+ {[%clk 0:00:05]}  f5 {[%clk 0:00:03]} 53. Ra6 {[%clk 0:00:05]}  Rc1+ {[%clk 0:00:02]} 54. Kg2 {[%clk 0:00:06]}  Rc2 {[%clk 0:00:03]} 55. Rxg6 {[%clk 0:00:06]}  Ne6 {[%clk 0:00:03]} 56. Bxf5 {[%clk 0:00:06]} 1-0


[Site "https://www.chess.com"]

[Event "Titled Tuesday Blitz March 29 Early 2022"]
[White "Piliczewski, Bogusz"]
[Black "Shuvalov, Evgenij"]
[WhiteFideId "1104144"]
[BlackFideId "4187237"]
[WhiteElo "1896"]
[BlackElo "2151"]
[Result "0-1"]
[Round "03"]
[TimeControl "180+1"]
[Date "2022.03.30"]
[WhiteClock "0:00:15"]
[BlackClock "0:00:33"]

1. d4 {[%clk 0:02:57]}  Nf6 {[%clk 0:02:59]} 2. Nf3 {[%clk 0:02:57]}  g6 {[%clk 0:02:58]} 3. Bf4 {[%clk 0:02:58]}  Bg7 {[%clk 0:02:57]} 4. e3 {[%clk 0:02:58]}  d6 {[%clk 0:02:56]} 5. h3 {[%clk 0:02:58]}  O-O {[%clk 0:02:56]} 6. Be2 {[%clk 0:02:59]}  Nc6 {[%clk 0:02:56]} 7. O-O {[%clk 0:02:59]}  Nd7 {[%clk 0:02:56]} 8. c4 {[%clk 0:02:58]}  e5 {[%clk 0:02:55]} 9. Bh2 {[%clk 0:02:58]}  e4 {[%clk 0:02:43]} 10. Nfd2 {[%clk 0:02:57]}  f5 {[%clk 0:02:44]} 11. Nc3 {[%clk 0:02:55]}  Nf6 {[%clk 0:02:41]} 12. a3 {[%clk 0:02:53]}  g5 {[%clk 0:02:36]} 13. b4 {[%clk 0:02:52]}  Ne7 {[%clk 0:02:36]} 14. c5 {[%clk 0:02:44]}  d5 {[%clk 0:02:35]} 15. b5 {[%clk 0:02:43]}  Ng6 {[%clk 0:02:33]} 16. a4 {[%clk 0:02:34]}  f4 {[%clk 0:02:31]} 17. Qb3 {[%clk 0:02:03]}  Kh8 {[%clk 0:02:27]} 18. Nxd5 {[%clk 0:01:32]}  Nxd5 {[%clk 0:02:21]} 19. Nxe4 {[%clk 0:01:31]}  fxe3 {[%clk 0:01:58]} 20. fxe3 {[%clk 0:01:30]}  Rxf1+ {[%clk 0:01:48]} 21. Kxf1 {[%clk 0:01:09]}  Nxe3+ {[%clk 0:01:35]} 22. Qxe3 {[%clk 0:01:08]}  Bxd4 {[%clk 0:01:35]} 23. Rd1 {[%clk 0:01:03]}  Qf8+ {[%clk 0:01:27]} 24. Qf3 {[%clk 0:01:01]}  Qxf3+ {[%clk 0:00:58]} 25. Bxf3 {[%clk 0:01:00]}  Be5 {[%clk 0:00:58]} 26. Rd8+ {[%clk 0:00:52]}  Kg7 {[%clk 0:00:58]} 27. Bxe5+ {[%clk 0:00:47]}  Nxe5 {[%clk 0:00:59]} 28. Nxg5 {[%clk 0:00:45]}  Nxf3 {[%clk 0:00:55]} 29. gxf3 {[%clk 0:00:43]}  Bxh3+ {[%clk 0:00:54]} 30. Nxh3 {[%clk 0:00:40]}  Rxd8 {[%clk 0:00:54]} 31. Nf4 {[%clk 0:00:40]}  Kf6 {[%clk 0:00:51]} 32. Ke2 {[%clk 0:00:39]}  Rd4 {[%clk 0:00:50]} 33. Ke3 {[%clk 0:00:34]}  Rxa4 {[%clk 0:00:41]} 34. Nd5+ {[%clk 0:00:34]}  Ke5 {[%clk 0:00:41]} 35. Nxc7 {[%clk 0:00:35]}  Ra3+ {[%clk 0:00:41]} 36. Ke2 {[%clk 0:00:33]}  h5 {[%clk 0:00:41]} 37. b6 {[%clk 0:00:20]}  axb6 {[%clk 0:00:40]} 38. cxb6 {[%clk 0:00:20]}  Rb3 {[%clk 0:00:36]} 39. Na8 {[%clk 0:00:17]}  Kf4 {[%clk 0:00:34]} 40. Kf2 {[%clk 0:00:17]}  Rb2+ {[%clk 0:00:34]} 41. Kg1 {[%clk 0:00:16]}  Kg3 {[%clk 0:00:34]} 42. Kh1 {[%clk 0:00:15]}  Rb1# {[%clk 0:00:33]} 0-1


[Site "https://www.chess.com"]

[Event "Titled Tuesday Blitz March 29 Early 2022"]
[White "Polanco Nunez, Yoel Estarling"]
[Black "Piesik, Piotr"]
[WhiteFideId "6401783"]
[BlackFideId "1136194"]
[WhiteElo "2132"]
[BlackElo "2190"]
[Result "0-1"]
[Round "03"]
[TimeControl "180+1"]
[Date "2022.03.30"]
[WhiteClock "0:00:04"]
[BlackClock "0:00:33"]

1. d4 {[%clk 0:03:00]}  c5 {[%clk 0:02:53]} 2. e3 {[%clk 0:02:59]}  Nf6 {[%clk 0:02:53]} 3. Nf3 {[%clk 0:02:59]}  d5 {[%clk 0:02:52]} 4. c3 {[%clk 0:02:58]}  Bg4 {[%clk 0:02:52]} 5. dxc5 {[%clk 0:02:55]}  Nbd7 {[%clk 0:02:50]} 6. b4 {[%clk 0:02:55]}  e6 {[%clk 0:02:46]} 7. Bb2 {[%clk 0:02:53]}  a5 {[%clk 0:02:44]} 8. a3 {[%clk 0:02:53]}  Be7 {[%clk 0:02:44]} 9. Nbd2 {[%clk 0:02:52]}  O-O {[%clk 0:02:43]} 10. h3 {[%clk 0:02:50]}  Bh5 {[%clk 0:02:43]} 11. Be2 {[%clk 0:02:50]}  Qc7 {[%clk 0:02:37]} 12. O-O {[%clk 0:02:48]}  b6 {[%clk 0:02:37]} 13. cxb6 {[%clk 0:02:47]}  Nxb6 {[%clk 0:02:38]} 14. Nd4 {[%clk 0:02:41]}  Bxe2 {[%clk 0:02:37]} 15. Qxe2 {[%clk 0:02:42]}  Rfc8 {[%clk 0:02:36]} 16. Rac1 {[%clk 0:02:39]}  Qd7 {[%clk 0:02:23]} 17. Qb5 {[%clk 0:02:34]}  Qxb5 {[%clk 0:02:08]} 18. Nxb5 {[%clk 0:02:34]}  Nc4 {[%clk 0:02:01]} 19. Nxc4 {[%clk 0:02:33]}  Rxc4 {[%clk 0:02:02]} 20. Nd4 {[%clk 0:02:28]}  Ne4 {[%clk 0:02:00]} 21. Nb3 {[%clk 0:01:48]}  a4 {[%clk 0:01:54]} 22. f3 {[%clk 0:01:39]}  Nd6 {[%clk 0:01:51]} 23. Nd2 {[%clk 0:01:36]}  Rc6 {[%clk 0:01:48]} 24. c4 {[%clk 0:01:29]}  dxc4 {[%clk 0:01:42]} 25. Rc2 {[%clk 0:01:23]}  Rac8 {[%clk 0:01:28]} 26. Rfc1 {[%clk 0:01:23]}  f6 {[%clk 0:01:21]} 27. Kf2 {[%clk 0:01:22]}  e5 {[%clk 0:01:18]} 28. Nb1 {[%clk 0:01:11]}  Nb5 {[%clk 0:01:12]} 29. Rd1 {[%clk 0:01:02]}  Kf7 {[%clk 0:01:06]} 30. Nc3 {[%clk 0:01:02]}  Nxc3 {[%clk 0:01:05]} 31. Bxc3 {[%clk 0:01:01]}  Ke6 {[%clk 0:01:01]} 32. Rcd2 {[%clk 0:01:00]}  Rd6 {[%clk 0:01:01]} 33. Rxd6+ {[%clk 0:00:59]}  Bxd6 {[%clk 0:01:02]} 34. Ke2 {[%clk 0:00:57]}  Bc7 {[%clk 0:00:48]} 35. e4 {[%clk 0:00:57]}  Rd8 {[%clk 0:00:47]} 36. Rxd8 {[%clk 0:00:52]}  Bxd8 {[%clk 0:00:48]} 37. Kd2 {[%clk 0:00:51]}  Bb6 {[%clk 0:00:49]} 38. Kc2 {[%clk 0:00:51]}  Be3 {[%clk 0:00:47]} 39. Bd2 {[%clk 0:00:49]}  Bd4 {[%clk 0:00:46]} 40. f4 {[%clk 0:00:40]}  exf4 {[%clk 0:00:44]} 41. Bxf4 {[%clk 0:00:41]}  f5 {[%clk 0:00:43]} 42. exf5+ {[%clk 0:00:38]}  Kxf5 {[%clk 0:00:44]} 43. Bc7 {[%clk 0:00:38]}  Ke4 {[%clk 0:00:42]} 44. b5 {[%clk 0:00:38]}  Kd5 {[%clk 0:00:43]} 45. b6 {[%clk 0:00:31]}  Kc6 {[%clk 0:00:42]} 46. Bd8 {[%clk 0:00:30]}  Bxb6 {[%clk 0:00:40]} 47. Be7 {[%clk 0:00:20]}  Bd4 {[%clk 0:00:39]} 48. Bf8 {[%clk 0:00:19]}  Kd5 {[%clk 0:00:38]} 49. Kd2 {[%clk 0:00:13]}  Ke4 {[%clk 0:00:36]} 50. Ke2 {[%clk 0:00:14]}  g6 {[%clk 0:00:36]} 51. Bb4 {[%clk 0:00:13]}  Kd5 {[%clk 0:00:35]} 52. Kd2 {[%clk 0:00:12]}  Bc5 {[%clk 0:00:34]} 53. Bc3 {[%clk 0:00:04]}  Bxa3 {[%clk 0:00:33]} 0-1


[Site "https://www.chess.com"]

[Event "Titled Tuesday Blitz March 29 Early 2022"]
[White "Posthuma, Joshua"]
[Black "Demin, Vladimir"]
[WhiteFideId "2096889"]
[BlackFideId "4167457"]
[WhiteElo "2176"]
[BlackElo "2502"]
[Result "1-0"]
[Round "03"]
[TimeControl "180+1"]
[Date "2022.03.30"]
[WhiteClock "0:02:04"]
[BlackClock "0:00:18"]

1. d4 {[%clk 0:03:00]}  Nf6 {[%clk 0:02:59]} 2. c4 {[%clk 0:03:00]}  e6 {[%clk 0:02:58]} 3. g3 {[%clk 0:02:58]}  d5 {[%clk 0:02:58]} 4. Bg2 {[%clk 0:02:59]}  Be7 {[%clk 0:02:58]} 5. Nf3 {[%clk 0:02:59]}  O-O {[%clk 0:02:59]} 6. O-O {[%clk 0:03:00]}  dxc4 {[%clk 0:02:59]} 7. Qc2 {[%clk 0:03:00]}  b5 {[%clk 0:02:47]} 8. a4 {[%clk 0:03:00]}  Bb7 {[%clk 0:01:39]} 9. axb5 {[%clk 0:02:58]}  a6 {[%clk 0:01:30]} 10. Nc3 {[%clk 0:02:42]}  axb5 {[%clk 0:01:12]} 11. Rxa8 {[%clk 0:02:42]}  Bxa8 {[%clk 0:01:13]} 12. Nxb5 {[%clk 0:02:42]}  c5 {[%clk 0:00:35]} 13. Qxc4 {[%clk 0:02:26]}  Bd5 {[%clk 0:00:32]} 14. Qa4 {[%clk 0:02:26]}  Qb6 {[%clk 0:00:29]} 15. Nc3 {[%clk 0:02:14]}  Bc6 {[%clk 0:00:28]} 16. dxc5 {[%clk 0:02:15]}  Bxc5 {[%clk 0:00:28]} 17. Qh4 {[%clk 0:02:12]}  Nbd7 {[%clk 0:00:26]} 18. Na4 {[%clk 0:02:10]}  Bxa4 {[%clk 0:00:22]} 19. Qxa4 {[%clk 0:02:11]}  Nd5 {[%clk 0:00:18]} 20. Qxd7 {[%clk 0:02:04]} 1-0


[Site "https://www.chess.com"]

[Event "Titled Tuesday Blitz March 29 Early 2022"]
[White "Postny, Evgeny"]
[Black "Jaskolka, Tomasz"]
[WhiteFideId "2804344"]
[BlackFideId "1170791"]
[WhiteElo "2483"]
[BlackElo "2073"]
[Result "1-0"]
[Round "03"]
[TimeControl "180+1"]
[Date "2022.03.29"]
[WhiteClock "0:00:05"]
[BlackClock "0:00:06"]

1. Nf3 {[%clk 0:03:00]}  e6 {[%clk 0:03:00]} 2. c4 {[%clk 0:03:01]}  d5 {[%clk 0:03:00]} 3. d4 {[%clk 0:03:01]}  Nf6 {[%clk 0:02:57]} 4. Bg5 {[%clk 0:03:01]}  Be7 {[%clk 0:02:57]} 5. Nc3 {[%clk 0:03:01]}  Nbd7 {[%clk 0:02:57]} 6. e3 {[%clk 0:03:01]}  O-O {[%clk 0:02:56]} 7. Qc2 {[%clk 0:03:01]}  b6 {[%clk 0:02:54]} 8. c5 {[%clk 0:02:59]}  bxc5 {[%clk 0:02:51]} 9. Bb5 {[%clk 0:02:54]}  cxd4 {[%clk 0:02:45]} 10. Nxd4 {[%clk 0:02:53]}  Bb7 {[%clk 0:02:32]} 11. Nc6 {[%clk 0:02:51]}  Bxc6 {[%clk 0:02:31]} 12. Bxc6 {[%clk 0:02:52]}  Rb8 {[%clk 0:02:32]} 13. O-O {[%clk 0:02:52]}  Ne5 {[%clk 0:02:28]} 14. Ba4 {[%clk 0:02:48]}  Nc4 {[%clk 0:02:26]} 15. b3 {[%clk 0:02:43]}  Nd6 {[%clk 0:02:23]} 16. Bc6 {[%clk 0:02:26]}  Nfe4 {[%clk 0:02:19]} 17. Bxe7 {[%clk 0:02:24]}  Qxe7 {[%clk 0:02:19]} 18. Rac1 {[%clk 0:02:21]}  Rfc8 {[%clk 0:02:07]} 19. Na4 {[%clk 0:02:16]}  Nf5 {[%clk 0:01:55]} 20. Qd3 {[%clk 0:02:04]}  Qb4 {[%clk 0:01:43]} 21. Rc2 {[%clk 0:01:56]}  Ng5 {[%clk 0:01:28]} 22. h3 {[%clk 0:01:45]}  Qh4 {[%clk 0:01:21]} 23. Rfc1 {[%clk 0:01:35]}  Rb4 {[%clk 0:01:18]} 24. a3 {[%clk 0:01:17]}  Re4 {[%clk 0:00:19]} 25. Nc5 {[%clk 0:01:10]}  Re5 {[%clk 0:00:16]} 26. Nd7 {[%clk 0:00:57]}  Re4 {[%clk 0:00:16]} 27. Qf1 {[%clk 0:00:39]}  Nxe3 {[%clk 0:00:11]} 28. fxe3 {[%clk 0:00:36]}  Rxe3 {[%clk 0:00:11]} 29. Rf2 {[%clk 0:00:14]}  Rg3 {[%clk 0:00:11]} 30. Kh2 {[%clk 0:00:13]}  f6 {[%clk 0:00:08]} 31. Re1 {[%clk 0:00:08]}  Ne4 {[%clk 0:00:08]} 32. Rf4 {[%clk 0:00:07]}  Qg5 {[%clk 0:00:04]} 33. Rexe4 {[%clk 0:00:05]}  dxe4 {[%clk 0:00:05]} 34. Bxe4 {[%clk 0:00:05]}  Rxb3 {[%clk 0:00:05]} 35. Rg4 {[%clk 0:00:05]}  Qb5 {[%clk 0:00:04]} 36. Nxf6+ {[%clk 0:00:05]}  Kf7 {[%clk 0:00:05]} 37. Nd5+ {[%clk 0:00:05]}  Kg8 {[%clk 0:00:05]} 38. Ne7+ {[%clk 0:00:05]}  Kh8 {[%clk 0:00:05]} 39. Qxb5 {[%clk 0:00:05]}  Rxb5 {[%clk 0:00:05]} 40. Nxc8 {[%clk 0:00:05]}  Rb8 {[%clk 0:00:05]} 41. Ne7 {[%clk 0:00:05]}  h6 {[%clk 0:00:05]} 42. Nc6 {[%clk 0:00:05]}  Rb3 {[%clk 0:00:05]} 43. Rg3 {[%clk 0:00:05]}  Rb2 {[%clk 0:00:05]} 44. Rf3 {[%clk 0:00:05]}  h5 {[%clk 0:00:06]} 45. Rf8# {[%clk 0:00:05]} 1-0


[Site "https://www.chess.com"]

[Event "Titled Tuesday Blitz March 29 Early 2022"]
[White "Pranav, V"]
[Black "Coto Mederos, Michel"]
[WhiteFideId "25060783"]
[BlackFideId "3508528"]
[WhiteElo "2349"]
[BlackElo "2427"]
[Result "1-0"]
[Round "03"]
[TimeControl "180+1"]
[Date "2022.03.30"]
[WhiteClock "0:00:12"]
[BlackClock "0:00:03"]

1. e4 {[%clk 0:03:00]}  e5 {[%clk 0:02:52]} 2. Nf3 {[%clk 0:03:00]}  Nc6 {[%clk 0:02:51]} 3. Bb5 {[%clk 0:03:00]}  a6 {[%clk 0:02:51]} 4. Ba4 {[%clk 0:03:00]}  Nf6 {[%clk 0:02:52]} 5. O-O {[%clk 0:03:00]}  b5 {[%clk 0:02:52]} 6. Bb3 {[%clk 0:02:59]}  Bc5 {[%clk 0:02:53]} 7. d3 {[%clk 0:02:54]}  d6 {[%clk 0:02:51]} 8. a4 {[%clk 0:02:52]}  Rb8 {[%clk 0:02:42]} 9. h3 {[%clk 0:02:48]}  h6 {[%clk 0:02:40]} 10. Nc3 {[%clk 0:02:47]}  O-O {[%clk 0:02:38]} 11. Be3 {[%clk 0:02:46]}  Bxe3 {[%clk 0:02:32]} 12. fxe3 {[%clk 0:02:47]}  Be6 {[%clk 0:02:31]} 13. Bxe6 {[%clk 0:02:36]}  fxe6 {[%clk 0:02:32]} 14. axb5 {[%clk 0:02:33]}  axb5 {[%clk 0:02:33]} 15. Qe1 {[%clk 0:02:31]}  Qd7 {[%clk 0:02:22]} 16. Nh4 {[%clk 0:02:28]}  Qf7 {[%clk 0:02:01]} 17. Qg3 {[%clk 0:02:24]}  Qh5 {[%clk 0:01:53]} 18. Ra6 {[%clk 0:02:12]}  Nb4 {[%clk 0:01:43]} 19. Ra7 {[%clk 0:02:12]}  Rf7 {[%clk 0:01:43]} 20. Rf2 {[%clk 0:02:05]}  c5 {[%clk 0:01:16]} 21. Rxf6 {[%clk 0:01:35]}  Rxa7 {[%clk 0:01:06]} 22. Rxe6 {[%clk 0:01:36]}  Qf7 {[%clk 0:00:29]} 23. Rxd6 {[%clk 0:00:42]}  Ra1+ {[%clk 0:00:28]} 24. Kh2 {[%clk 0:00:42]}  Qf1 {[%clk 0:00:28]} 25. Qxe5 {[%clk 0:00:40]}  Qg1+ {[%clk 0:00:23]} 26. Kg3 {[%clk 0:00:39]}  Rf8 {[%clk 0:00:17]} 27. Qe6+ {[%clk 0:00:19]}  Kh7 {[%clk 0:00:16]} 28. Qg6+ {[%clk 0:00:19]}  Kg8 {[%clk 0:00:16]} 29. Nf5 {[%clk 0:00:20]}  Qe1+ {[%clk 0:00:12]} 30. Kf4 {[%clk 0:00:19]}  Qf2+ {[%clk 0:00:10]} 31. Ke5 {[%clk 0:00:19]}  Rxf5+ {[%clk 0:00:09]} 32. Qxf5 {[%clk 0:00:16]}  Qg3+ {[%clk 0:00:09]} 33. Ke6 {[%clk 0:00:16]}  Ra8 {[%clk 0:00:06]} 34. Nd5 {[%clk 0:00:13]}  Nxd5 {[%clk 0:00:04]} 35. Qxd5 {[%clk 0:00:13]}  Re8+ {[%clk 0:00:03]} 36. Kd7+ {[%clk 0:00:14]}  Kf8 {[%clk 0:00:04]} 37. Qf5+ {[%clk 0:00:12]}  Kg8 {[%clk 0:00:04]} 38. Kxe8 {[%clk 0:00:10]}  Qxd6 {[%clk 0:00:04]} 39. Qd5+ {[%clk 0:00:11]}  Qxd5 {[%clk 0:00:03]} 40. exd5 {[%clk 0:00:12]} 1-0


[Site "https://www.chess.com"]

[Event "Titled Tuesday Blitz March 29 Early 2022"]
[White "Przybylski, Wojciech"]
[Black "Mihailidis, Anastasios"]
[WhiteFideId "1117599"]
[BlackFideId "4205588"]
[WhiteElo "2133"]
[BlackElo "2312"]
[Result "1-0"]
[Round "03"]
[TimeControl "180+1"]
[Date "2022.03.30"]
[WhiteClock "0:00:05"]
[BlackClock "0:00:05"]

1. d4 {[%clk 0:02:59]}  d5 {[%clk 0:02:59]} 2. Nf3 {[%clk 0:02:58]}  e6 {[%clk 0:02:59]} 3. Bg5 {[%clk 0:02:56]}  Be7 {[%clk 0:02:59]} 4. Bf4 {[%clk 0:02:56]}  Nf6 {[%clk 0:02:58]} 5. g4 {[%clk 0:02:55]}  c5 {[%clk 0:02:55]} 6. e3 {[%clk 0:02:51]}  cxd4 {[%clk 0:02:54]} 7. exd4 {[%clk 0:02:51]}  Nxg4 {[%clk 0:02:53]} 8. Rg1 {[%clk 0:02:51]}  Nf6 {[%clk 0:02:50]} 9. Rxg7 {[%clk 0:02:49]}  Nh5 {[%clk 0:02:46]} 10. Rg4 {[%clk 0:02:30]}  f5 {[%clk 0:02:44]} 11. Bb5+ {[%clk 0:02:07]}  Bd7 {[%clk 0:02:36]} 12. Bxb8 {[%clk 0:01:45]}  fxg4 {[%clk 0:02:32]} 13. Bxd7+ {[%clk 0:01:40]}  Qxd7 {[%clk 0:02:21]} 14. Ne5 {[%clk 0:01:40]}  Qc8 {[%clk 0:01:59]} 15. Qxg4 {[%clk 0:01:39]}  Nf6 {[%clk 0:01:59]} 16. Qg7 {[%clk 0:01:37]}  Rf8 {[%clk 0:01:59]} 17. Nc3 {[%clk 0:01:22]}  Rxb8 {[%clk 0:01:58]} 18. O-O-O {[%clk 0:01:21]}  Qc7 {[%clk 0:01:49]} 19. Kb1 {[%clk 0:00:57]}  Bd6 {[%clk 0:01:40]} 20. Qg5 {[%clk 0:00:49]}  Bxe5 {[%clk 0:01:34]} 21. dxe5 {[%clk 0:00:48]}  Nd7 {[%clk 0:01:33]} 22. f4 {[%clk 0:00:37]}  a6 {[%clk 0:01:23]} 23. Rg1 {[%clk 0:00:27]}  Nb6 {[%clk 0:01:03]} 24. Qh6 {[%clk 0:00:27]}  Rd8 {[%clk 0:00:53]} 25. Rg7 {[%clk 0:00:24]}  Rd7 {[%clk 0:00:40]} 26. Qxe6+ {[%clk 0:00:19]}  Kd8 {[%clk 0:00:37]} 27. Rg4 {[%clk 0:00:18]}  Re8 {[%clk 0:00:32]} 28. Qf6+ {[%clk 0:00:17]}  Kc8 {[%clk 0:00:32]} 29. e6 {[%clk 0:00:18]}  Rde7 {[%clk 0:00:30]} 30. f5 {[%clk 0:00:18]}  d4 {[%clk 0:00:22]} 31. Ne4 {[%clk 0:00:17]}  Qxh2 {[%clk 0:00:19]} 32. b3 {[%clk 0:00:18]}  d3 {[%clk 0:00:18]} 33. Qc3+ {[%clk 0:00:16]}  Kb8 {[%clk 0:00:18]} 34. Qxd3 {[%clk 0:00:16]}  Rc7 {[%clk 0:00:16]} 35. Nd6 {[%clk 0:00:14]}  Rd8 {[%clk 0:00:15]} 36. e7 {[%clk 0:00:11]}  Rxe7 {[%clk 0:00:15]} 37. Rd4 {[%clk 0:00:10]}  Red7 {[%clk 0:00:14]} 38. f6 {[%clk 0:00:10]}  Rxd6 {[%clk 0:00:14]} 39. Rxd6 {[%clk 0:00:10]}  Qxd6 {[%clk 0:00:14]} 40. Qf5 {[%clk 0:00:10]}  Qd1+ {[%clk 0:00:12]} 41. Kb2 {[%clk 0:00:09]}  Qd4+ {[%clk 0:00:13]} 42. Kb1 {[%clk 0:00:09]}  Qd7 {[%clk 0:00:13]} 43. Qf4+ {[%clk 0:00:09]}  Ka7 {[%clk 0:00:13]} 44. f7 {[%clk 0:00:09]}  Rf8 {[%clk 0:00:10]} 45. a4 {[%clk 0:00:09]}  Qxf7 {[%clk 0:00:10]} 46. Qe3 {[%clk 0:00:09]}  Qf6 {[%clk 0:00:07]} 47. a5 {[%clk 0:00:08]}  h5 {[%clk 0:00:06]} 48. Qc5 {[%clk 0:00:07]}  Rg8 {[%clk 0:00:03]} 49. Qxh5 {[%clk 0:00:06]}  Qg6 {[%clk 0:00:03]} 50. axb6+ {[%clk 0:00:05]}  Qxb6 {[%clk 0:00:03]} 51. Qd1 {[%clk 0:00:05]}  Rd8 {[%clk 0:00:03]} 52. Qe2 {[%clk 0:00:04]}  Rd6 {[%clk 0:00:04]} 53. Kb2 {[%clk 0:00:04]}  Rc6 {[%clk 0:00:05]} 54. c3 {[%clk 0:00:04]}  Qc5 {[%clk 0:00:05]} 55. Qd3 {[%clk 0:00:04]}  Rd6 {[%clk 0:00:04]} 56. Qe2 {[%clk 0:00:03]}  Qb6 {[%clk 0:00:04]} 57. b4 {[%clk 0:00:03]}  Rc6 {[%clk 0:00:04]} 58. Kb3 {[%clk 0:00:04]}  Qb5 {[%clk 0:00:04]} 59. Qe4 {[%clk 0:00:03]}  Qb6 {[%clk 0:00:04]} 60. Qd3 {[%clk 0:00:04]}  Qc7 {[%clk 0:00:05]} 61. Qd4+ {[%clk 0:00:04]}  Kb8 {[%clk 0:00:06]} 62. c4 {[%clk 0:00:05]}  Qg3+ {[%clk 0:00:05]} 63. Ka4 {[%clk 0:00:05]}  b5+ {[%clk 0:00:04]} 64. cxb5 {[%clk 0:00:05]}  axb5+ {[%clk 0:00:05]} 65. Kxb5 {[%clk 0:00:05]}  Rc7 {[%clk 0:00:06]} 66. Qd8+ {[%clk 0:00:05]}  Kb7 {[%clk 0:00:05]} 67. Qd5+ {[%clk 0:00:05]}  Kc8 {[%clk 0:00:06]} 68. Qe6+ {[%clk 0:00:05]}  Rd7 {[%clk 0:00:06]} 69. Qe8+ {[%clk 0:00:05]}  Kc7 {[%clk 0:00:05]} 70. Qe4 {[%clk 0:00:05]}  Qg5+ {[%clk 0:00:04]} 71. Ka6 {[%clk 0:00:05]}  Rd6+ {[%clk 0:00:05]} 72. Ka7 {[%clk 0:00:05]}  Qd8 {[%clk 0:00:05]} 73. Qb7# {[%clk 0:00:05]} 1-0


[Site "https://www.chess.com"]

[Event "Titled Tuesday Blitz March 29 Early 2022"]
[White "Rabineau, Clement"]
[Black "Tasev, Dejan"]
[WhiteFideId "628891"]
[BlackFideId "936618"]
[WhiteElo "2237"]
[BlackElo "2253"]
[Result "0-1"]
[Round "03"]
[TimeControl "180+1"]
[Date "2022.03.30"]
[WhiteClock "0:00:03"]
[BlackClock "0:00:30"]

1. e4 {[%clk 0:02:58]}  e5 {[%clk 0:02:59]} 2. Nf3 {[%clk 0:02:58]}  Nf6 {[%clk 0:02:58]} 3. Nc3 {[%clk 0:02:52]}  Nc6 {[%clk 0:02:58]} 4. d4 {[%clk 0:02:52]}  exd4 {[%clk 0:02:58]} 5. Nxd4 {[%clk 0:02:53]}  Bc5 {[%clk 0:02:58]} 6. Be3 {[%clk 0:02:52]}  Bb6 {[%clk 0:02:58]} 7. Nf5 {[%clk 0:02:40]}  O-O {[%clk 0:02:52]} 8. Bxb6 {[%clk 0:02:34]}  axb6 {[%clk 0:02:51]} 9. Ne3 {[%clk 0:02:28]}  Re8 {[%clk 0:02:48]} 10. Bd3 {[%clk 0:02:24]}  d6 {[%clk 0:02:42]} 11. O-O {[%clk 0:02:24]}  Ra5 {[%clk 0:02:38]} 12. Ncd5 {[%clk 0:02:06]}  Nxe4 {[%clk 0:02:28]} 13. c4 {[%clk 0:01:34]}  Nf6 {[%clk 0:02:24]} 14. Qd2 {[%clk 0:01:21]}  Be6 {[%clk 0:02:15]} 15. Nf4 {[%clk 0:00:59]}  Ne5 {[%clk 0:02:02]} 16. Nxe6 {[%clk 0:00:56]}  fxe6 {[%clk 0:01:57]} 17. Bc2 {[%clk 0:00:50]}  Nc6 {[%clk 0:01:47]} 18. b4 {[%clk 0:00:48]}  Rh5 {[%clk 0:01:31]} 19. a3 {[%clk 0:00:25]}  e5 {[%clk 0:01:28]} 20. f4 {[%clk 0:00:17]}  exf4 {[%clk 0:01:20]} 21. Rxf4 {[%clk 0:00:18]}  Rhe5 {[%clk 0:01:19]} 22. Ng4 {[%clk 0:00:10]}  Nxg4 {[%clk 0:01:15]} 23. Rxg4 {[%clk 0:00:11]}  Qe7 {[%clk 0:01:02]} 24. h4 {[%clk 0:00:09]}  Re1+ {[%clk 0:00:56]} 25. Rxe1 {[%clk 0:00:01]}  Qxe1+ {[%clk 0:00:54]} 26. Qxe1 {[%clk 0:00:02]}  Rxe1+ {[%clk 0:00:54]} 27. Kf2 {[%clk 0:00:03]}  Rc1 {[%clk 0:00:49]} 28. Be4 {[%clk 0:00:03]}  Ne5 {[%clk 0:00:43]} 29. Bd5+ {[%clk 0:00:03]}  Kf8 {[%clk 0:00:42]} 30. Rf4+ {[%clk 0:00:04]}  Ke7 {[%clk 0:00:42]} 31. Ke2 {[%clk 0:00:03]}  c6 {[%clk 0:00:37]} 32. Bg8 {[%clk 0:00:03]}  h6 {[%clk 0:00:35]} 33. g4 {[%clk 0:00:04]}  Rc2+ {[%clk 0:00:34]} 34. Kd1 {[%clk 0:00:04]}  Rc3 {[%clk 0:00:33]} 35. a4 {[%clk 0:00:04]}  Ra3 {[%clk 0:00:33]} 36. b5 {[%clk 0:00:03]}  Rxa4 {[%clk 0:00:30]} 37. c5 {[%clk 0:00:03]}  Rxf4 {[%clk 0:00:30]} 0-1


[Site "https://www.chess.com"]